[Event "73rd Greek Championship 2024"]
[Site "Thessaloniki"]
[Date "2024.12.09"]
[Round "8.2"]
[White "Stamatiou, Rodolfos"]
[Black "Hadzimanolis, Antonios"]
[Result "0-1"]
[Annotator "RC"]
[ECO "E04"]
[WhiteElo "2308"]
[BlackElo "2159"]
[PlyCount "118"]
[EventDate "2024.12.02"]
[EventType "tourn"]
[EventCountry "GRE"]
[SourceTitle "playchess.com"]
[Source "ChessBase"]
[SourceQuality "1"]
[TimeControl "40/5400+30:1800+30"]

1. d4 {[%emt 0:01:09]} d5 {[%emt 0:00:07]} 2. Nf3 {[%emt 0:00:39]} Nf6 {[%emt 0:00:12]} 3. c4 {[%emt 0:00:13]} e6 {[%emt 0:00:11]} 4. g3 {[%emt 0:00:08]} dxc4 {[%emt 0:00:08]} 5. Bg2 {[%emt 0:00:08]} c5 {[%emt 0:00:09]} 6. O-O {[%emt 0:04:33]} Nc6 {[%emt 0:00:33]} 7. dxc5 {[%emt 0:00:51]} Qxd1 {[%emt 0:00:11]} 8. Rxd1 {[%emt 0:00:05]} Bxc5 {[%emt 0:00:12]} 9. Nbd2 {[%emt 0:01:26]} c3 {[%emt 0:00:18]} 10. bxc3 {[%emt 0:00:06]} O-O {[%emt 0:00:16]} 11. Nb3 {[%emt 0:01:03]} Be7 {[%emt 0:00:10]} 12. Nfd4 {[%emt 0:10:05]} Nxd4 {[%emt 0:02:26]} 13. cxd4 {[%emt 0:01:19]} Nd5 {[%emt 0:00:18]} 14. Bd2 {[%emt 0:09:10]} f5 {[%emt 0:00:14]} 15. Bxd5 {[%emt 0:04:41]} exd5 {[%emt 0:00:03]} 16. Rac1 {[%emt 0:01:16]} b6 {[%emt 0:13:11]} 17. Rc7 {[%emt 0:03:02]} Bd8 {[%emt 0:02:36]} 18. Rc2 {[%emt 0:01:29]} Ba6 {[%emt 0:16:35]} 19. Bb4 {[%emt 0:03:25]} Re8 {[%emt 0:00:39]} 20. e3 {[%emt 0:00:27]} Bf6 {[%emt 0:09:34]} 21. Nd2 {[%emt 0:00:30]} Rac8 {[%emt 0:00:30]} 22. Rdc1 {[%emt 0:00:30]} Rxc2 {[%emt 0:00:30]} 23. Rxc2 {[%emt 0:00:30]} Rc8 {[%emt 0:00:30]} 24. Rxc8+ {[%emt 0:00:30]} Bxc8 {[%emt 0:00:30]} 25. Kf1 {[%emt 0:00:30]} g5 {[%emt 0:00:30]} 26. Bd6 {[%emt 0:00:30]} Bd8 {[%emt 0:00:30]} 27. Ke2 {[%emt 0:00:30]} Kf7 {[%emt 0:00:30]} 28. Kd3 {[%emt 0:00:30]} Ke6 {[%emt 0:00:30]} 29. Bb8 {[%emt 0:00:30]} a5 {[%emt 0:00:30]} 30. Nf3 {[%emt 0:00:30]} Ba6+ {[%emt 0:00:30]} 31. Kc2 {[%emt 0:00:30]} Bc4 {[%emt 0:00:30]} 32. Kb2 {[%emt 0:00:30]} b5 {[%emt 0:00:30]} 33. Ba7 {[%emt 0:00:30]} g4 {[%emt 0:00:30]} 34. Ne1 {[%emt 0:00:30]} Bf1 {[%emt 0:00:30]} 35. Bc5 {[%emt 0:00:30]} Kd7 {[%emt 0:00:30]} 36. a3 {[%emt 0:00:30]} Kc6 {[%emt 0:00:30]} 37. Kc3 {[%emt 0:00:30]} h5 {[%emt 0:00:30]} 38. Nc2 {[%emt 0:00:30]} h4 {[%emt 0:00:30]} 39. Bf8 {[%emt 0:00:30]} h3 {[%emt 0:00:30]} 40. Na1 {[%emt 0:00:30]} Bc4 {[%emt 0:00:30]} 41. Nc2 {[%emt 0:30:30]} Bb6 {[%emt 0:30:30]} 42. Ne1 {[%emt 0:00:30]} Be2 {[%emt 0:00:30]} 43. Kd2 {[%emt 0:00:30]} Bf1 {[%emt 0:00:30]} 44. Nc2 {[%emt 0:00:30]} Kd7 {[%emt 0:00:30]} 45. Bc5 {[%emt 0:00:30]} Bc7 {[%emt 0:00:30]} 46. e4 {[%emt 0:00:30]} fxe4 {[%emt 0:00:30]} 47. Ne3 {[%emt 0:00:30]} Bc4 {[%emt 0:00:30]} 48. Nxg4 {[%emt 0:00:30]} Ke6 {[%emt 0:00:30]} 49. Ne3 {[%emt 0:00:30]} Bd8 {[%emt 0:00:30]} 50. Kc3 {[%emt 0:00:30]} Bg5 {[%emt 0:00:30]} 51. Nxc4 {[%emt 0:00:30]} bxc4 {[%emt 0:00:30]} 52. a4 {[%emt 0:00:30]} Bd8 {[%emt 0:00:30]} 53. Kd2 {[%emt 0:00:30]} Kf5 {[%emt 0:00:30]} 54. Ke2 {[%emt 0:00:30]} Kg4 {[%emt 0:00:30]} 55. Bd6 {[%emt 0:00:30]} c3 {[%emt 0:00:30]} 56. Bf4 {[%emt 0:00:30]} Bg5 {[%emt 0:00:30]} 57. Bxg5 {[%emt 0:00:30]} Kxg5 {[%emt 0:00:30]} 58. Kd1 {[%emt 0:00:30]} Kg4 {[%emt 0:00:30]} 59. Kc2 {[%emt 0:00:30]} Kf3 {[%emt 0:00:30]} 0-1

[Event "73rd Greek Championship 2024"]
[Site "Thessaloniki"]
[Date "2024.12.09"]
[Round "8.3"]
[White "Mitsis, Georgios"]
[Black "Kolytas, Spiridon"]
[Result "1-0"]
[Annotator "TA"]
[ECO "E11"]
[WhiteElo "2383"]
[BlackElo "1946"]
[PlyCount "83"]
[EventDate "2024.12.02"]
[EventType "tourn"]
[EventCountry "GRE"]
[SourceTitle "playchess.com"]
[Source "ChessBase"]
[SourceQuality "1"]
[TimeControl "40/5400+30:1800+30"]

{[%evp 11,83,22,26,18,19,2,14,4,12,13,48,37,52,56,49,22,35,27,57,-81,-46,-60,-21,-148,-88,-154,-89,-89,-25,-20,0,-81,-80,-66,-52,-60,-50,-56,-14,-97,-92,-81,0,-131,-32,-68,-66,-75,-16,-27,0,0,6,0,8,34,35,16,70,47,136,84,105,80,254,247,414,395,1236,1197,2260,2233,1949,1949]} 1. d4 {[%emt 0:00:45]} Nf6 {[%emt 0:00:13]} 2. Nf3 {[%emt 0:00:07]} e6 {[%emt 0:00:09]} 3. c4 {[%emt 0:00:05]} Bb4+ {[%emt 0:00:10]} 4. Bd2 {[%emt 0:00:18]} a5 {[%emt 0:00:06]} 5. g3 {[%emt 0:00:08]} d6 {[%emt 0:00:17]} 6. Bg2 {[%emt 0:00:21]} Nc6 {[%emt 0:00:33]} 7. Nc3 {[%emt 0:04:27]} e5 {[%emt 0:13:54]} 8. d5 {[%emt 0:00:40]} Ne7 {[%emt 0:00:59]} 9. O-O {[%emt 0:00:22] The position is equal.} O-O {[%emt 0:00:47]} 10. Ne1 {[%emt 0:02:29]} a4 {[%emt 0:06:05]} 11. e4 {[%emt 0:07:36]} (11. Nxa4 $2 Bxd2 12. Qxd2 Rxa4 $19) 11... c6 {[%emt 0:08:55][%cal Ob7b5]} 12. Nd3 {[%emt 0:01:11]} (12. Nxa4 $2 Bxd2 13. Qxd2 Rxa4 $19) 12... Ba5 {[%emt 0:00:51][%cal Ob7b5]} 13. Qe2 {[%emt 0:32:27]} (13. Qxa4 Bxc3 14. Qxa8 Bxd2 $17) 13... cxd5 {[%emt 0:03:39]} 14. cxd5 {[%emt 0:00:31]} (14. Nxa4 $2 Bxd2 (14... dxc4 $2 15. Bxa5 Qxa5 16. Nc3 $19) 15. b3 dxc4 16. Qxd2 cxd3 $19) 14... Ng6 {[%emt 0:04:52]} 15. f4 {[%emt 0:00:30]} (15. a3 $14) 15... exf4 $1 $17 {[%emt 0:00:30]} 16. gxf4 {[%emt 0:00:30]} Nh4 {[%emt 0:00:30][%cal Oa4a3]} 17. Nf2 {[%emt 0:00:30] [#]} (17. f5 $1 $11 {remains equal.}) 17... a3 {[%emt 0:00:30]} 18. b3 {[%emt 0:00:30]} ({Better is} 18. Rab1) 18... Bb6 {[%emt 0:00:30]} ({Black should play} 18... b5 {Hoping for ...Ba6.} 19. b4 Bxb4) 19. Be3 {[%emt 0:00:30] [#]} Ng4 {[%emt 0:00:30]} 20. Nxg4 $11 {[%emt 0:00:30]} Bxg4 {[%emt 0:00:30]} 21. Qf2 {[%emt 0:00:30]} (21. Bxb6 $1 $11 Qxb6+ 22. Qf2) 21... Bxe3 $17 {[%emt 0:00:30]} 22. Qxe3 {[%emt 0:00:30]} Nxg2 {[%emt 0:00:30]} 23. Kxg2 {[%emt 0:00:30]} Rc8 $1 {[%emt 0:00:30]} 24. Rac1 $1 {[%emt 0:00:30]} Re8 {[%emt 0:00:30]} 25. Qg3 {[%emt 0:00:30]} (25. Nb5 $11 {keeps the balance.}) 25... Bd7 $1 {[%emt 0:00:30]} 26. Rfe1 {[%emt 0:00:30]} Qa5 {[%emt 0:00:30]} (26... b5 $17 {White must now prevent ...b4.} 27. e5 Bf5 28. Nxb5 Rxc1 29. Rxc1 dxe5) 27. e5 {[%emt 0:00:30] [#]} (27. f5 $1 $11) 27... Qb4 {[%emt 0:00:30]} ({Black should try} 27... Rc5 $1 $17 {And now ...dxe5 would win.} 28. Kh1 Rec8) 28. Re3 {[%emt 0:00:30]} Bf5 {[%emt 0:00:30]} 29. Rce1 {[%emt 0:00:30]} Qd4 {[%emt 0:00:30]} (29... g6 $17) 30. Qf3 {[%emt 0:00:30] Nb5 is the strong threat.} (30. Kf1 {simplifies} Qc5 31. exd6 Rxe3 32. Qxe3 Qxd6 33. Qe8+) 30... dxe5 {[%emt 0:00:30]} 31. fxe5 {[%emt 0:00:30][%cal Oc3b5]} Bg4 $132 {[%emt 0:00:30][%mdl 2048] Black is not keeping still} 32. Qg3 {[%emt 0:00:30]} Bf5 {[%emt 0:00:30] Wards off Rd3} 33. Rd1 {[%emt 0:00:30]} Qb4 {[%emt 0:00:30]} 34. Rf1 {[%emt 0:00:30]} (34. h3 $5) 34... Bg6 {[%emt 0:00:30]} (34... Rxc3 $1 $11 35. Rxc3 Be4+ 36. Kg1 Bxd5) 35. d6 $14 {[%emt 0:00:30]} Red8 {[%emt 0:00:30]} (35... Re6 $1 $14) 36. Kg1 {[%emt 0:00:30] White is more active.} (36. Rf4 $142 Qc5 37. Qf2) 36... Rc5 {[%emt 0:00:30]} 37. Rd1 {[%emt 0:00:30]} Qa5 $2 {[%emt 0:00:30] [#] A mistake that costs the game.} (37... Bf5 $16 {is a better defense.}) 38. Qh4 $1 $18 {[%emt 0:00:30] Threatens to win with b4.} Rxc3 $2 {[%emt 0:00:30]} (38... Qb6 39. Na4 (39. Nd5 $2 Rxd5 40. Rde1 Rd2 $19) 39... Rc4) 39. Rxc3 {[%emt 0:00:30][%cal Od6d7]} f6 $2 {[%emt 0:00:30]} (39... h6 40. b4 Qb6+ 41. Qd4 Qb5) 40. Qc4+ {[%emt 0:00:30] White is clearly winning.} Kh8 {[%emt 0:00:30]} 41. Qc7 {[%emt 0:30:30]} Qa7+ {[%emt 0:30:30]} 42. Rc5 {[%emt 0:00:30] Weighted Error Value: White=0.36/Black=0.38.  Loses game:     	---       	Black=1      Mistake:       	White=7     	Black=10     Inaccurate:     	White=2     	Black=6      OK:         	White=9     	Black=5      Best:        	White=1     	Black=1      Strong:       	White=2     	Black=3} 1-0

[Event "73rd Greek Championship 2024"]
[Site "Thessaloniki"]
[Date "2024.12.09"]
[Round "8.4"]
[White "Kourkoulos-Arditis, Stamatis"]
[Black "Alexiadis, Hristos"]
[Result "1/2-1/2"]
[Annotator "TA"]
[ECO "B92"]
[WhiteElo "2575"]
[BlackElo "2341"]
[PlyCount "91"]
[EventDate "2024.12.02"]
[EventType "tourn"]
[EventCountry "GRE"]
[SourceTitle "playchess.com"]
[Source "ChessBase"]
[SourceQuality "1"]
[TimeControl "40/5400+30:1800+30"]

{[%evp 20,91,11,0,8,0,19,14,18,4,25,25,15,7,18,33,27,20,26,17,37,43,89,86,61,59,116,127,314,140,168,148,163,169,189,191,250,216,217,172,202,176,236,182,377,210,206,131,149,110,94,72,204,193,297,301,387,8,8,0,0,0,0,0,0,0,0,-8,0,-8,0,0,0,-8]} 1. e4 {[%emt 0:00:03]} c5 {[%emt 0:05:34]} 2. Nf3 {[%emt 0:00:03]} d6 {[%emt 0:00:05]} 3. d4 {[%emt 0:00:17]} cxd4 {[%emt 0:00:05]} 4. Nxd4 {[%emt 0:00:04]} Nf6 {[%emt 0:00:06]} 5. Nc3 {[%emt 0:00:07]} a6 {[%emt 0:00:04]} 6. Be2 {[%emt 0:00:25]} e5 {[%emt 0:00:07]} 7. Nb3 {[%emt 0:00:08]} Be7 {[%emt 0:00:06]} 8. Be3 {[%emt 0:00:26]} Be6 {[%emt 0:00:05]} 9. O-O {[%emt 0:00:28]} O-O {[%emt 0:00:13]} 10. Bf3 {[%emt 0:00:25]} Nbd7 {[%emt 0:06:22]} 11. a4 {[%emt 0:00:33]} Qc7 {[%emt 0:06:00]} 12. Re1 {[%emt 0:05:29]} h6 {[%emt 0:06:40]} 13. h3 {[%emt 0:03:14]} Rfc8 {[%emt 0:05:30]} 14. a5 {[%emt 0:02:10]} b5 {[%emt 0:08:42]} 15. axb6 {[%emt 0:00:29]} Nxb6 {[%emt 0:00:05]} 16. Na5 {[%emt 0:00:37]} Nc4 {[%emt 0:14:49]} 17. Nxc4 {[%emt 0:01:01]} Bxc4 {[%emt 0:00:06]} 18. Bd2 {[%emt 0:01:58]} Be6 {[%emt 0:05:36]} 19. b3 {[%emt 0:02:55]} Nd7 {[%emt 0:05:09]} 20. Ra2 {[%emt 0:06:45]} Bg5 {[%emt 0:00:30]} (20... Qb7 $14 {is superior.}) 21. Bxg5 $16 {[%emt 0:00:30]} hxg5 {[%emt 0:00:30]} 22. Re3 {[%emt 0:00:30][%cal Be1e3,Be3d3,Bd3d6][%mdl 32]} g6 {[%emt 0:00:30]} ({Black should try} 22... Nc5 $14) 23. Bg4 {[%emt 0:00:30]} f5 $2 {[%emt 0:00:30] [#]} (23... Nc5 $16) 24. Bf3 {[%emt 0:00:30]} (24. Nd5 Qd8 $18) (24. exf5 $18 {and White stays clearly on top.} gxf5 25. Nd5) 24... f4 {[%emt 0:00:30]} 25. Rd3 {[%emt 0:00:30]} Nc5 {[%emt 0:00:30]} 26. Rxd6 {[%emt 0:00:30]} Bf7 {[%emt 0:00:30]} 27. Bg4 {[%emt 0:00:30]} Rd8 {[%emt 0:00:30]} (27... Re8 {might work better.} 28. Ra1 Nb7) 28. Rxd8+ $18 {[%emt 0:00:30]} Rxd8 {[%emt 0:00:30]} 29. Qe1 {[%emt 0:00:30]} Rd4 {[%emt 0:00:30][%cal Bd8d4,Bd4b4,Bb4a4][%mdl 32]} 30. Ra1 {[%emt 0:00:30][%cal Ob3b4,Ba2a1,Ba1d1,Bd1d4][%mdl 32] Hoping for b4!} Qb6 {[%emt 0:00:30]} (30... Qd6 $142 31. Kh2 Kh8) 31. Bf3 {[%emt 0:00:30]} a5 $2 {[%emt 0:00:30]} (31... Kh7 32. Nd5 Bxd5 33. exd5 e4) 32. Ne2 {[%emt 0:00:30]} (32. Nd5 $142 Qd6 33. Qxa5 (33. Rxa5 Nxe4 34. Bxe4 Bxd5 $18) 33... Nxe4 34. Nc7 (34. Bxe4 Bxd5 35. Bd3 Bxb3 $18)) 32... Rb4 {[%emt 0:00:30]} 33. Rd1 {[%emt 0:00:30]} a4 {[%emt 0:00:30]} 34. bxa4 {[%emt 0:00:30]} Rxa4 {[%emt 0:00:30][%cal Oa4c4]} 35. Qc3 {[%emt 0:00:30]} (35. Nc3 {simplifies} Ra3 36. Nd5 Qa5 37. Qxa5 Rxa5 38. Ne7+) 35... Nxe4 {[%emt 0:00:30]} (35... Qc7 $16) 36. Qxe5 {[%emt 0:00:30]} Nxf2 {[%emt 0:00:30]} (36... Qf6 {was called for.} 37. Qb5 Ra1) 37. Rd4 {[%emt 0:00:30]} Nd1 {[%emt 0:00:30][%cal Od1e3] [#]} 38. Kh2 $2 {[%emt 0:00:30]} (38. Bd5 $1 $18 {White wants to mate with Qe8+.} Ra7 39. Kh2 (39. Qxg5 Ne3 $14) (39. Qe8+ Kg7 $18)) 38... Rxd4 $1 $11 {[%emt 0:00:30] The position is equal.} 39. Qxd4 {[%emt 0:00:30]} (39. Nxd4 {feels hotter.} Ne3 40. Be2 Qb2 41. Qd6) 39... Qxd4 {[%emt 0:00:30]} 40. Nxd4 {[%emt 0:00:30][%mdl 4096] Endgame. KBN-KBN} Ne3 {[%emt 0:00:30]} 41. Kg1 {[%emt 0:30:30]} Kg7 {[%emt 0:30:30]} 42. Kf2 {[%emt 0:00:30]} Kf6 {[%emt 0:00:30]} 43. g3 {[%emt 0:00:30]} Bc4 {[%emt 0:00:30]} 44. Be2 {[%emt 0:00:30]} Bd5 {[%emt 0:00:30]} 45. Bf3 {[%emt 0:00:30]} Bc4 {[%emt 0:00:30]} 46. Be2 {[%emt 0:00:30] Black defended with fortune.   Weighted Error Value: White=0.39/Black=0.38.  Loses game:     	---       	Black=1      Missed win:     	White=2     	---        Mistake:       	White=1     	Black=7      Inaccurate:     	White=1     	---        OK:         	White=14    	Black=5      Best:        	White=2     	Black=1      Strong:       	---       	Black=1} 1/2-1/2

[Event "73rd Greek Championship 2024"]
[Site "Thessaloniki"]
[Date "2024.12.09"]
[Round "8.5"]
[White "Alexakis, Dimitris"]
[Black "Tsaknakis, Zisis"]
[Result "1-0"]
[Annotator "RC"]
[ECO "C48"]
[WhiteElo "2520"]
[BlackElo "2259"]
[PlyCount "103"]
[EventDate "2024.12.02"]
[EventType "tourn"]
[EventCountry "GRE"]
[SourceTitle "playchess.com"]
[Source "ChessBase"]
[SourceQuality "1"]
[TimeControl "40/5400+30:1800+30"]

1. e4 {[%emt 0:04:44]} e5 {[%emt 0:00:17]} 2. Nf3 {[%emt 0:00:10]} Nc6 {[%emt 0:00:04]} 3. Nc3 {[%emt 0:00:29]} Nf6 {[%emt 0:00:03]} 4. Bb5 {[%emt 0:00:07]} Nd4 {[%emt 0:00:06]} 5. O-O {[%emt 0:00:42]} Nxb5 {[%emt 0:00:08]} 6. Nxb5 {[%emt 0:00:04]} c6 {[%emt 0:00:15]} 7. Nc3 {[%emt 0:00:06]} d6 {[%emt 0:00:06]} 8. d4 {[%emt 0:00:10]} Qc7 {[%emt 0:00:08]} 9. h3 {[%emt 0:00:48]} h6 {[%emt 0:03:19]} 10. a4 {[%emt 0:03:31]} Be7 {[%emt 0:02:19]} 11. b3 {[%emt 0:01:31]} g5 {[%emt 0:09:14]} 12. Nh2 {[%emt 0:09:28]} Rg8 {[%emt 0:01:25]} 13. a5 {[%emt 0:30:22]} g4 {[%emt 0:11:45]} 14. hxg4 {[%emt 0:02:38]} Nxg4 {[%emt 0:03:24]} 15. d5 {[%emt 0:03:37]} c5 {[%emt 0:02:06]} 16. f4 {[%emt 0:00:30]} c4 {[%emt 0:00:30]} 17. b4 {[%emt 0:00:30]} Nxh2 {[%emt 0:00:30]} 18. Kxh2 {[%emt 0:00:30]} Bg4 {[%emt 0:00:30]} 19. Qe1 {[%emt 0:00:30]} Bf6 {[%emt 0:00:30]} 20. Ra3 {[%emt 0:00:30]} Qe7 {[%emt 0:00:30]} 21. Qf2 {[%emt 0:00:30]} Bh4 {[%emt 0:00:30]} 22. g3 {[%emt 0:00:30]} Bf3 {[%emt 0:00:30]} 23. Qxf3 {[%emt 0:00:30]} Bxg3+ {[%emt 0:00:30]} 24. Qxg3 {[%emt 0:00:30]} Rxg3 {[%emt 0:00:30]} 25. Kxg3 {[%emt 0:00:30]} f5 {[%emt 0:00:30]} 26. Ne2 {[%emt 0:00:30]} O-O-O {[%emt 0:00:30]} 27. Kf2 {[%emt 0:00:30]} Rg8 {[%emt 0:00:30]} 28. Rg3 {[%emt 0:00:30]} Rf8 {[%emt 0:00:30]} 29. Rfg1 {[%emt 0:00:30]} Qh4 {[%emt 0:00:30]} 30. Ke3 {[%emt 0:00:30]} fxe4 {[%emt 0:00:30]} 31. fxe5 {[%emt 0:00:30]} dxe5 {[%emt 0:00:30]} 32. Kd2 {[%emt 0:00:30]} Qd8 {[%emt 0:00:30]} 33. Ke1 {[%emt 0:00:30]} h5 {[%emt 0:00:30]} 34. Rh1 {[%emt 0:00:30]} Qxd5 {[%emt 0:00:30]} 35. Rxh5 {[%emt 0:00:30]} Qf7 {[%emt 0:00:30]} 36. Rh2 {[%emt 0:00:30]} Qf1+ {[%emt 0:00:30]} 37. Kd2 {[%emt 0:00:30]} Rd8+ {[%emt 0:00:30]} 38. Kc3 {[%emt 0:00:30]} Qe1+ {[%emt 0:00:30]} 39. Kxc4 {[%emt 0:00:30]} Rd4+ {[%emt 0:00:30]} 40. Nxd4 {[%emt 0:00:30]} Qxg3 {[%emt 0:00:30]} 41. Rh8+ {[%emt 0:30:30]} Kd7 {[%emt 0:30:30]} 42. Rh7+ {[%emt 0:00:30]} Kc8 {[%emt 0:00:30]} 43. Ne6 {[%emt 0:00:30]} e3 {[%emt 0:00:30]} 44. Rc7+ {[%emt 0:00:30]} Kb8 {[%emt 0:00:30]} 45. Rg7 {[%emt 0:00:30]} Qh4+ {[%emt 0:00:30]} 46. Kd5 {[%emt 0:00:30]} Kc8 {[%emt 0:00:30]} 47. Bxe3 {[%emt 0:00:30]} Qh1+ {[%emt 0:00:30]} 48. Kd6 {[%emt 0:00:30]} Qd1+ {[%emt 0:00:30]} 49. Ke7 {[%emt 0:00:30]} b5 {[%emt 0:00:30]} 50. Rg8+ {[%emt 0:00:30]} Kb7 {[%emt 0:00:30]} 51. a6+ {[%emt 0:00:30]} Kxa6 {[%emt 0:00:30]} 52. Rb8 {[%emt 0:00:30]} 1-0

[Event "73rd Greek Championship 2024"]
[Site "Thessaloniki"]
[Date "2024.12.10"]
[Round "9.1"]
[White "Tsaknakis, Zisis"]
[Black "Patrelakis, Evaggelos"]
[Result "0-1"]
[Annotator "TA"]
[ECO "B12"]
[WhiteElo "2259"]
[BlackElo "2437"]
[PlyCount "120"]
[EventDate "2024.12.02"]
[EventType "tourn"]
[EventCountry "GRE"]
[SourceTitle "playchess.com"]
[Source "ChessBase"]
[SourceQuality "1"]
[TimeControl "40/5400+30:1800+30"]

{[%evp 9,120,0,0,0,0,-3,17,20,29,21,18,33,22,25,27,18,35,13,45,-12,0,0,0,0,12,-11,0,-16,-18,-87,-79,-128,-134,-151,-149,-149,-133,-129,-130,-147,-145,-262,-260,-249,-247,-265,-257,-258,-260,-289,-279,-278,-262,-270,-268,-304,-268,-260,-269,-283,-280,-294,-277,-296,-302,-301,-283,-266,-192,-191,-193,-249,-255,-268,-235,-279,-262,-268,-260,-300,-291,-322,-264,-308,-291,-299,-300,-370,-368,-369,-360,-565,-568,-571,-565,-582,-586,-580,-589,-739,-699,-768,-768,-737,-734,-713,-696,-1685,-1654,-1520,-1432,-2187,-1975]} 1. e4 {[%emt 0:02:41]} c6 {[%emt 0:00:20]} 2. d4 {[%emt 0:01:13]} d5 {[%emt 0:00:08]} 3. e5 {[%emt 0:01:30]} Bf5 {[%emt 0:00:09]} 4. h4 {[%emt 0:01:07]} a6 {[%emt 0:00:41]} 5. c4 {[%emt 0:01:52]} dxc4 {[%emt 0:14:53]} 6. Bxc4 {[%emt 0:01:11]} e6 {[%emt 0:00:32]} 7. Nc3 {[%emt 0:04:31] and g4 would now be decisive} h6 {[%emt 0:03:50]} 8. Nge2 {[%emt 0:11:17]} Ne7 {[%emt 0:09:56][%cal Oc6c5]} 9. Be3 {[%emt 0:00:47]} Nd7 {[%emt 0:04:18][%cal Oc6c5,Bb8d7,Bd7b6,Bb6d5][%mdl 32]} 10. Ng3 {[%emt 0:09:07]} Bh7 {[%emt 0:05:55]} 11. Qg4 {[%emt 0:16:03]} Nb6 {[%emt 0:15:36]} 12. Bb3 {[%emt 0:00:41]} Nbd5 {[%emt 0:00:41]} 13. Rd1 {[%emt 0:06:09]} a5 {[%emt 0:04:29][%cal Oa5a4]} 14. Nge4 {[%emt 0:15:39]} (14. O-O $14) 14... Nf5 {[%emt 0:09:03]} 15. Nxd5 {[%emt 0:00:27]} exd5 {[%emt 0:00:20]} 16. Nc3 {[%emt 0:01:01]} Be7 {[%emt 0:06:30][%cal Re7h4]} 17. Bc1 {[%emt 0:04:51]} O-O {[%emt 0:04:33][%cal Of7f6]} (17... Bxh4 $2 18. Bc2 $18) 18. Bc2 {[%emt 0:02:55]} Qc8 {[%emt 0:00:34]} 19. Rh3 {[%emt 0:05:32]} (19. Qe2 $11) 19... f6 $17 {[%emt 0:00:57]} (19... Kh8 {simplifies} 20. Qe2 Nxh4 21. Kf1 Bxc2 22. Qxc2 g5) 20. e6 {[%emt 0:01:34]} Qxe6+ {[%emt 0:01:32]} 21. Re3 {[%emt 0:02:03]} Qc8 {[%emt 0:00:17]} (21... Nxe3 $2 22. Qxe6+ Kh8 23. Bxe3 $18 (23. Qxe3 Bxc2 24. Kd2 Bxd1 $18)) 22. Rf3 {[%emt 0:03:09]} Nd6 {[%emt 0:00:21][%csl LRc2,LRg4]} 23. Bxh7+ {[%emt 0:00:13]} Kxh7 {[%emt 0:00:06]} 24. Qh5 {[%emt 0:02:49]} Qe8 {[%emt 0:01:02]} 25. Qg4 {[%emt 0:00:25]} (25. Qxe8 $17 Rfxe8 (25... Raxe8 26. h5 $17) 26. Kf1) 25... f5 $19 {[%emt 0:03:36]} 26. Qh3 {[%emt 0:00:28]} Qh5 {[%emt 0:00:26]} 27. Re3 {[%emt 0:01:57]} Qxh4 {[%emt 0:02:23]} (27... Bxh4 28. g3 $11) 28. Qxh4 {[%emt 0:01:40]} Bxh4 {[%emt 0:00:08]} 29. Rh3 {[%emt 0:00:10]} Bf6 {[%emt 0:00:50]} 30. Bf4 {[%emt 0:00:21]} Rae8+ {[%emt 0:01:23]} 31. Kf1 {[%emt 0:00:36]} Ne4 {[%emt 0:00:08]} 32. Ne2 {[%emt 0:00:47]} g5 {[%emt 0:00:48]} 33. Bc7 {[%emt 0:00:33]} Bd8 {[%emt 0:01:07]} 34. Be5 {[%emt 0:00:32]} Kg6 {[%emt 0:00:45]} 35. Rb3 {[%emt 0:00:42]} Rf7 {[%emt 0:00:20]} 36. f3 {[%emt 0:01:01]} Nf6 {[%emt 0:00:14]} 37. Nc1 {[%emt 0:00:24]} Nd7 {[%emt 0:05:42]} 38. Nd3 {[%emt 0:00:01]} c5 {[%emt 0:00:09]} 39. Rb5 {[%emt 0:01:29]} (39. Rxb7 $2 c4 40. Rxd7 Rxd7 $19) 39... c4 {[%emt 0:02:01]} 40. Nc1 {[%emt 0:00:00]} (40. Nc5 $142 Nxe5 41. dxe5 Rxe5 42. Nxb7) 40... Nxe5 {[%emt 0:00:00]} 41. dxe5 {[%emt 0:01:44]} Rxe5 {[%emt 0:02:52]} 42. Ne2 {[%emt 0:10:29]} Rd7 {[%emt 0:06:04]} 43. Nc3 {[%emt 0:00:25]} Kf7 {[%emt 0:05:52]} 44. Nxd5 {[%emt 0:02:51] [#]} b6 $1 {[%emt 0:01:14]} 45. g3 {[%emt 0:05:46]} Rd6 {[%emt 0:02:06] ...Ke6 would now be deadly.} (45... Ke6 46. Nf4+ gxf4 (46... Kf6 47. Nh5+ Kg6 48. Rxd7 $16) 47. Rxe5+ Kxe5 48. Rxd7 $16) 46. f4 {[%emt 0:00:12]} gxf4 {[%emt 0:00:14]} 47. gxf4 {[%emt 0:00:02]} Re4 {[%emt 0:01:08]} 48. Re1 {[%emt 0:00:33]} Rd4 {[%emt 0:01:56]} 49. Re5 {[%emt 0:01:56]} Kg6 {[%emt 0:00:51]} 50. Ne3 {[%emt 0:03:53]} (50. Kf2 {was called for.}) 50... Rxf4+ {[%emt 0:00:47]} 51. Ke2 {[%emt 0:00:58]} Bf6 {[%emt 0:04:03]} 52. Rxf5 {[%emt 0:00:18]} Rxf5 {[%emt 0:00:52]} 53. Nxf5 {[%emt 0:00:02][%mdl 4096] Endgame KRB-KRN. Black is two pawns up.} Re6+ {[%emt 0:00:11]} 54. Kf3 {[%emt 0:00:02]} Re5 {[%emt 0:00:56]} 55. Nh4+ {[%emt 0:06:56]} Kh5 {[%emt 0:00:30]} ({Inferior is} 55... Bxh4 56. Rxe5 Bf6 57. Rb5 $14) 56. Rxb6 {[%emt 0:00:11]} Bxh4 {[%emt 0:00:13]} 57. Rc6 {[%emt 0:00:23]} Rf5+ {[%emt 0:00:46]} 58. Ke3 {[%emt 0:00:46]} Bg5+ {[%emt 0:00:41]} 59. Kd4 {[%emt 0:02:27]} Rf2 {[%emt 0:00:52]} 60. Rb6 {[%emt 0:00:33] [#]} Rxb2 $3 {[%emt 0:00:30]} 0-1